bitfinex-derivatives/quotes_BTCF0:USTF0_20241015
["timestamp","ask_amount","ask_price","bid_price","bid_amount"]
[1728984504324,0.076138,65693.0,65690.0,0.81922615]
[1728984504532,0.3608,65696.0,65692.0,0.30308933]
[1728984504714,0.076137,65694.0,65693.0,0.33254868]
[1728984505633,0.076137,65694.0,65693.0,0.43909901]
[1728984506043,0.12,65699.0,65693.0,0.47976182]
[1728984506230,0.196133,65697.0,65696.0,0.10655055]
[1728984506547,0.196133,65697.0,65696.0,0.48821093]
[1728984506743,0.076135,65695.0,65694.0,0.12]
[1728984506948,0.11342335,65695.0,65694.0,0.12212]
[1728984507144,0.19007404,65695.0,65694.0,0.12212]
[1728984507447,0.19007404,65695.0,65694.0,0.12]
[1728984508931,0.19107404,65695.0,65694.0,0.12]
[1728984509527,0.19207404,65695.0,65694.0,0.12]
[1728984511125,0.29134932,65695.0,65694.0,0.12]
[1728984511426,0.19207404,65695.0,65694.0,0.12]
[1728984511620,0.1920383,65695.0,65694.0,0.12]
[1728984512222,0.32859875,65695.0,65694.0,0.12]
[1728984512422,0.1920383,65695.0,65694.0,0.12]
[1728984512623,0.076137,65694.0,65693.0,0.0981]
[1728984512819,0.1900403,65694.0,65693.0,0.0981]
[1728984513022,0.32659779,65694.0,65693.0,0.0981]
[1728984513726,0.076137,65694.0,65693.0,0.20413083]
[1728984514026,0.077137,65694.0,65693.0,0.20413083]
[1728984514628,0.078137,65694.0,65693.0,0.20413083]
[1728984514825,0.078137,65694.0,65693.0,0.23134127]
[1728984515027,0.198137,65694.0,65693.0,0.10603083]
[1728984515436,0.198137,65694.0,65693.0,0.07610574]
[1728984515931,0.198137,65694.0,65692.0,0.0004]
[1728984515932,0.076138,65693.0,65692.0,0.0004]
[1728984517131,0.077138,65693.0,65692.0,0.0004]
[1728984517526,0.078138,65693.0,65692.0,0.0004]
[1728984521829,0.14501009,65693.0,65692.0,0.0004]
[1728984524032,0.03157969,65693.0,65692.0,0.1204]
[1728984524228,0.10771769,65693.0,65692.0,0.1204]
[1728984525832,0.10802333,65693.0,65692.0,0.1204]
[1728984526737,0.078138,65693.0,65692.0,0.1204]
[1728984527643,0.10801426,65693.0,65692.0,0.1204]
[1728984528032,0.10801426,65693.0,65692.0,0.196539]
[1728984528434,0.078138,65693.0,65692.0,0.196539]
[1728984528833,0.086728,65702.0,65693.0,0.076138]
[1728984528834,0.076135,65696.0,65693.0,0.076138]
[1728984529041,0.086728,65702.0,65697.0,0.12]
[1728984529042,0.076132,65698.0,65697.0,0.12]
[1728984529233,0.076132,65698.0,65697.0,0.22596552]
[1728984529440,0.076132,65698.0,65697.0,0.22636552]
[1728984529944,0.076132,65698.0,65697.0,0.34636552]
[1728984530234,0.076132,65698.0,65697.0,0.42856897]
[1728984530638,0.076132,65698.0,65697.0,0.42828113]
[1728984530839,0.076126,65704.0,65698.0,0.076132]
[1728984531039,0.076125,65704.0,65703.0,0.076126]
[1728984531236,0.076125,65704.0,65703.0,0.30827413]
[1728984531431,0.076123,65706.0,65705.0,0.076124]
[1728984531627,0.076123,65706.0,65705.0,0.18225036]
[1728984532636,0.077123,65706.0,65705.0,0.18425036]
[1728984533438,0.078123,65706.0,65705.0,0.18625036]
[1728984535042,0.078123,65706.0,65705.0,0.11012636]
[1728984536744,0.19279609,65706.0,65705.0,0.0044]
[1728984541349,0.19279609,65706.0,65702.0,0.076127]
[1728984541350,0.19279609,65706.0,65702.0,0.06606532]
[1728984541645,0.196126,65703.0,65702.0,0.06606532]
[1728984541941,0.31079909,65703.0,65702.0,0.06606532]
[1728984542546,0.3103983,65703.0,65702.0,0.06606532]
[1728984542754,0.3103983,65703.0,65702.0,0.06706532]
[1728984543049,0.3103983,65703.0,65702.0,0.001]
[1728984543236,0.3103983,65703.0,65702.0,0.02783909]
[1728984543438,0.27310765,65703.0,65702.0,0.001]
[1728984543745,0.196126,65703.0,65702.0,0.23213884]
[1728984544343,0.196126,65703.0,65702.0,0.23212805]
[1728984544548,0.197126,65703.0,65702.0,0.23212805]
[1728984544739,0.198126,65703.0,65702.0,0.23112805]
[1728984546653,0.078126,65703.0,65702.0,0.23112805]
[1728984546845,0.198126,65703.0,65702.0,0.23112805]
[1728984547442,0.198126,65703.0,65702.0,0.10544347]
[1728984547745,0.078126,65703.0,65702.0,0.10544347]
[1728984547944,0.078126,65703.0,65702.0,0.22544347]
[1728984548253,0.078126,65703.0,65702.0,0.35108496]
[1728984552145,0.078126,65703.0,65702.0,0.22544347]
[1728984552346,0.078126,65703.0,65702.0,0.35112716]
[1728984552845,0.078126,65703.0,65702.0,0.22544347]
[1728984553043,0.198126,65703.0,65702.0,0.10544804]
[1728984553252,0.198126,65703.0,65702.0,0.23118932]
[1728984553552,0.198126,65703.0,65702.0,0.10544804]
[1728984555257,0.198126,65703.0,65702.0,0.23130166]
[1728984556451,0.076128,65702.0,65700.0,0.46643487]
[1728984556855,0.076128,65702.0,65700.0,0.46431487]
[1728984557650,0.077128,65702.0,65700.0,0.46431487]
[1728984558053,0.078128,65702.0,65700.0,0.46431487]
[1728984558259,0.078128,65702.0,65701.0,0.12]
[1728984559663,0.077128,65702.0,65701.0,0.12]
[1728984559959,0.078128,65702.0,65701.0,0.12]
[1728984560355,0.077128,65702.0,65701.0,0.12]
[1728984560558,0.078128,65702.0,65701.0,0.12]
[1728984563254,0.1084438,65702.0,65701.0,0.12]
[1728984565354,0.1084438,65702.0,65701.0,0.196128]
[1728984565660,0.0323158,65702.0,65701.0,0.196128]
[1728984566651,0.076123,65706.0,65701.0,0.196128]
[1728984566857,0.076123,65706.0,65705.0,0.1204]
[1728984567859,0.077123,65706.0,65705.0,0.1204]
[1728984568460,0.077123,65706.0,65705.0,0.2252976]
[1728984568661,0.078123,65706.0,65705.0,0.2252976]
[1728984569163,0.077123,65706.0,65705.0,0.2252976]
[1728984569461,0.078123,65706.0,65705.0,0.2252976]
[1728984569859,0.078123,65706.0,65705.0,0.5860976]
[1728984570472,0.078123,65706.0,65705.0,0.4660976]
[1728984571264,0.078123,65706.0,65705.0,0.59105431]
[1728984573167,0.078123,65706.0,65705.0,0.59116083]
[1728984573758,0.16213764,65706.0,65705.0,0.3612]
[1728984575560,0.21674374,65706.0,65705.0,0.3612]
[1728984575762,0.32878666,65706.0,65705.0,0.3612]
[1728984575965,0.16213764,65706.0,65705.0,0.3612]
[1728984576664,0.19338661,65706.0,65705.0,0.3612]
[1728984578467,0.36003563,65706.0,65705.0,0.0004]
[1728984579259,0.19338661,65706.0,65705.0,0.0004]
[1728984581664,0.078123,65706.0,65705.0,0.23032744]
[1728984581865,0.002,65706.0,65705.0,0.23032744]
[1728984582559,0.078123,65706.0,65705.0,0.23032744]
[1728984582968,0.078123,65706.0,65705.0,0.22942864]
[1728984587774,0.078123,65706.0,65705.0,0.22932545]
[1728984588762,0.14719821,65706.0,65705.0,0.0004]
[1728984592872,0.14719821,65706.0,65705.0,0.3612]
[1728984596782,0.078123,65706.0,65705.0,0.73478143]
[1728984597472,0.078123,65706.0,65705.0,0.85930502]
[1728984597677,0.078123,65706.0,65705.0,0.73480149]
[1728984600582,0.078123,65706.0,65705.0,0.8414382]
[1728984600778,0.078123,65706.0,65705.0,0.4806382]
[1728984600971,0.078123,65706.0,65705.0,0.10703671]
[1728984601173,0.078123,65706.0,65705.0,0.84142431]
[1728984601382,0.078123,65706.0,65705.0,0.22940336]
[1728984601585,0.076132,65698.0,65697.0,0.0039]
[1728984601780,0.316132,65698.0,65697.0,0.12543413]
[1728984602677,0.196132,65698.0,65697.0,0.12543413]
[1728984602876,0.196132,65698.0,65697.0,0.48623413]
[1728984602877,0.076132,65698.0,65697.0,0.48623413]
[1728984603185,0.03042188,65698.0,65697.0,0.60623413]
[1728984603379,0.076129,65701.0,65697.0,0.85641855]
[1728984603575,0.076129,65701.0,65700.0,0.12]
[1728984603780,0.076129,65701.0,65700.0,0.1204]
[1728984604789,0.077129,65701.0,65700.0,0.1204]
[1728984605589,0.077129,65701.0,65700.0,0.19649243]
[1728984605984,0.077129,65701.0,65700.0,0.0004]
[1728984606393,0.078129,65701.0,65700.0,0.0004]
[1728984611483,0.078129,65701.0,65700.0,0.06124884]
[1728984611893,0.14862804,65701.0,65700.0,0.0004]
[1728984612684,0.076132,65698.0,65697.0,0.0004]
[1728984612884,0.076138,65693.0,65692.0,0.0004]
[1728984613096,0.26634218,65693.0,65692.0,0.0004]
[1728984614509,0.26734218,65693.0,65692.0,0.0004]
[1728984616086,0.62814218,65693.0,65692.0,0.0004]
[1728984616286,0.62914218,65693.0,65692.0,0.0004]
[1728984617698,0.62814218,65693.0,65692.0,0.0004]
[1728984617897,0.62914218,65693.0,65692.0,0.0004]
[1728984618200,0.26834218,65693.0,65692.0,0.0004]
[1728984618391,1.08582218,65693.0,65692.0,0.0004]
[1728984618592,0.076147,65685.0,65684.0,0.0035]
[1728984618797,0.076148,65684.0,65683.0,0.3608]
[1728984618996,0.12,65685.0,65683.0,0.61589147]
[1728984619301,0.196147,65685.0,65684.0,0.10424949]
[1728984619888,0.316147,65685.0,65684.0,0.10424949]
[1728984620195,0.196147,65685.0,65684.0,0.10424949]
[1728984620501,0.197147,65685.0,65684.0,0.10424949]
[1728984621802,0.198147,65685.0,65684.0,0.10424949]
[1728984622888,0.197147,65685.0,65684.0,0.10424949]
[1728984623093,0.198147,65685.0,65684.0,0.10424949]
[1728984624615,0.318147,65685.0,65684.0,0.10424949]
[1728984624994,0.198147,65685.0,65684.0,0.0004]
[1728984625299,0.318147,65685.0,65684.0,0.0004]
[1728984625503,0.198147,65685.0,65684.0,0.0004]
[1728984626301,0.198147,65685.0,65684.0,0.07630233]
[1728984626594,0.198147,65685.0,65684.0,0.0004]
[1728984627704,0.318147,65685.0,65684.0,0.0004]
[1728984627895,0.076156,65677.0,65676.0,0.0035]
[1728984628097,0.076166,65669.0,65668.0,0.3643]
[1728984628400,0.196166,65669.0,65668.0,0.02755385]
[1728984628610,0.076169,65666.0,65665.0,0.4143]
[1728984628801,0.196169,65666.0,65665.0,0.4143]
[1728984629205,0.196169,65666.0,65665.0,0.44157678]
[1728984630203,0.196169,65666.0,65665.0,0.4143]
[1728984630903,0.197169,65666.0,65665.0,0.4143]
[1728984631307,0.198169,65666.0,65665.0,0.4143]
[1728984634014,0.198169,65666.0,65665.0,0.51834308]
[1728984634403,0.198169,65666.0,65665.0,0.15754308]
[1728984635011,0.198169,65666.0,65665.0,0.51834308]
[1728984635208,0.122,65666.0,65665.0,0.51834308]
[1728984635412,0.198169,65666.0,65665.0,0.51834308]
[1728984635710,0.198169,65666.0,65665.0,0.15754308]
[1728984638719,0.198169,65666.0,65665.0,0.51834308]
[1728984640514,0.198169,65666.0,65665.0,0.60947036]
[1728984640821,0.198169,65666.0,65665.0,0.51834308]
[1728984641423,0.198169,65666.0,65665.0,0.6420783]
[1728984641711,0.198169,65666.0,65665.0,0.2486422]
[1728984642022,0.198169,65666.0,65665.0,0.15754308]
[1728984642721,0.198169,65666.0,65665.0,0.15763231]
[1728984643424,0.198169,65666.0,65665.0,0.10413231]
[1728984645019,0.198169,65666.0,65658.0,0.41384]
[1728984645020,0.198169,65666.0,65662.0,0.0759311]
[1728984645322,0.4808,65663.0,65660.0,0.0759311]
[1728984645519,0.196175,65661.0,65660.0,0.0759311]
[1728984646921,0.12,65661.0,65659.0,0.0759311]
[1728984647126,0.076176,65660.0,65659.0,0.0759311]
[1728984647328,0.076176,65660.0,65659.0,0.10460405]
[1728984648631,0.077176,65660.0,65659.0,0.10460405]
[1728984648827,0.078176,65660.0,65659.0,0.10460405]
[1728984649022,0.078176,65660.0,65657.0,0.076179]
[1728984649023,0.076178,65658.0,65657.0,0.076179]
[1728984649229,0.196178,65658.0,65657.0,0.076179]
[1728984650327,0.197178,65658.0,65657.0,0.076179]
[1728984650734,0.198178,65658.0,65657.0,0.076179]
[1728984651031,0.002,65658.0,65657.0,0.436979]
[1728984651236,0.002,65658.0,65657.0,0.556979]
[1728984651736,0.002,65658.0,65657.0,0.336979]
[1728984651939,0.0106,65666.0,65662.0,0.076173]
[1728984652236,0.0106,65666.0,65665.0,0.1204]
[1728984652237,0.07617,65666.0,65665.0,0.1204]
[1728984652440,0.07617,65666.0,65665.0,0.19657]
[1728984653631,0.07717,65666.0,65665.0,0.19657]
[1728984654039,0.07817,65666.0,65665.0,0.19657]
[1728984654239,0.07717,65666.0,65665.0,0.19657]
[1728984654432,0.07817,65666.0,65665.0,0.19757]
[1728984654826,0.07817,65666.0,65665.0,0.22649169]
[1728984655725,0.002,65666.0,65665.0,0.22649169]
[1728984656435,0.21026,65674.0,65665.0,0.22649169]
[1728984656436,0.0141,65674.0,65665.0,0.34649169]
[1728984656639,0.076159,65675.0,65674.0,0.076159]
[1728984656838,0.12,65677.0,65674.0,0.0004]
[1728984657029,0.12,65677.0,65676.0,0.196557]
[1728984657231,0.076152,65681.0,65676.0,0.34819579]
[1728984657544,0.076152,65681.0,65680.0,0.1204]
[1728984657736,0.076152,65681.0,65680.0,0.1043432]
[1728984658134,0.076147,65685.0,65683.0,0.076149]
[1728984658335,0.076147,65685.0,65683.0,0.3004922]
[1728984658534,0.076147,65685.0,65683.0,0.39172015]
[1728984658734,0.196147,65685.0,65683.0,0.39172015]
[1728984659143,0.436948,65684.0,65683.0,0.39172015]
[1728984659345,0.436948,65684.0,65683.0,0.3004922]
[1728984659933,0.076148,65684.0,65683.0,0.3004922]
[1728984660328,0.077148,65684.0,65683.0,0.3034922]
[1728984660535,0.001,65684.0,65683.0,0.33146329]
[1728984660744,0.001,65684.0,65683.0,0.4226343]
[1728984660947,0.076141,65691.0,65690.0,0.07614]
[1728984661237,0.076141,65691.0,65690.0,0.39164977]
[1728984661438,0.4808,65693.0,65692.0,0.076139]
[1728984661439,0.12,65693.0,65692.0,0.076139]
[1728984661632,0.076138,65694.0,65693.0,0.076137]
[1728984661833,0.076138,65694.0,65693.0,0.1804802]
[1728984662029,0.076138,65694.0,65693.0,0.3004802]
[1728984662237,0.12,65702.0,65693.0,0.2243432]
[1728984662438,0.076129,65701.0,65700.0,0.076128]
[1728984663141,0.076129,65701.0,65700.0,0.15199181]
[1728984663335,0.076129,65701.0,65700.0,0.076128]
[1728984664139,0.11802236,65701.0,65700.0,0.12]
[1728984664340,0.11902236,65701.0,65700.0,0.200128]
[1728984664951,0.23902236,65701.0,65700.0,0.080128]
[1728984665252,0.31615036,65701.0,65700.0,0.006]
[1728984665743,0.37076329,65701.0,65700.0,0.006]
[1728984667139,0.49076329,65701.0,65700.0,0.006]
[1728984667336,0.37076329,65701.0,65700.0,0.006]
[1728984667845,0.43076329,65701.0,65700.0,0.006]
[1728984669148,0.43076329,65701.0,65700.0,0.03330534]
[1728984669447,0.43076329,65701.0,65700.0,0.006]
[1728984672042,0.258128,65701.0,65700.0,0.006]
[1728984675148,0.078128,65701.0,65700.0,0.006]
[1728984675654,0.002,65701.0,65700.0,0.08213]
[1728984676644,0.002,65701.0,65700.0,1.13873]
[1728984679654,0.002,65701.0,65700.0,0.53873]
[1728984681450,0.03344963,65701.0,65700.0,0.53873]
[1728984684458,0.03344963,65701.0,65700.0,0.08213]
[1728984687355,0.03344963,65701.0,65700.0,0.54735755]
[1728984687356,0.002,65701.0,65700.0,0.54735755]
[1728984687555,0.258128,65701.0,65700.0,0.5471585]
[1728984687857,0.198128,65701.0,65700.0,0.3668]
[1728984688167,0.678928,65701.0,65700.0,0.006]
[1728984688961,0.318128,65701.0,65700.0,0.006]
[1728984689368,0.198128,65701.0,65700.0,0.06675249]
[1728984689563,0.198128,65701.0,65700.0,0.006]
[1728984689765,0.258128,65701.0,65700.0,0.06675249]
[1728984690964,0.258128,65701.0,65700.0,0.006]
[1728984691261,0.258128,65701.0,65700.0,0.06682103]
[1728984691565,0.258128,65701.0,65700.0,0.006]
[1728984691956,0.078128,65701.0,65700.0,0.08193095]
[1728984692457,0.002,65701.0,65700.0,0.36691073]
[1728984693957,0.002,65701.0,65700.0,0.18691073]
[1728984694355,0.002,65701.0,65700.0,0.36691073]
[1728984695066,0.0141,65709.0,65708.0,0.07612]
[1728984695367,0.667713,65715.0,65711.0,0.076116]
[1728984695557,0.5916,65715.0,65713.0,0.0004]
[1728984695869,0.127914,65714.0,65713.0,0.0004]
[1728984696764,0.128914,65714.0,65713.0,0.0004]
[1728984697070,0.128914,65714.0,65713.0,0.04601552]
[1728984697369,0.128914,65714.0,65713.0,0.0064]
[1728984697673,0.585434,65714.0,65713.0,0.0064]
[1728984701274,0.66367959,65714.0,65713.0,0.0064]
[1728984701463,0.700962,65714.0,65713.0,0.0064]
[1728984702365,0.19771103,65714.0,65713.0,0.0064]
[1728984703776,0.14591103,65714.0,65713.0,0.0064]
[1728984705978,0.14603404,65714.0,65713.0,0.0064]
[1728984707466,0.19276377,65714.0,65713.0,0.0064]
[1728984709480,0.077114,65714.0,65713.0,0.0064]
[1728984712478,0.077114,65714.0,65713.0,0.082515]
[1728984712677,0.001,65714.0,65713.0,0.082515]
[1728984716280,0.03289029,65714.0,65713.0,0.082515]
[1728984716872,0.10900329,65714.0,65713.0,0.0064]
[1728984717078,0.10900329,65714.0,65713.0,0.082515]
[1728984718177,0.03289029,65714.0,65713.0,0.082515]
[1728984718387,0.03289029,65714.0,65713.0,0.262515]
[1728984719569,0.0141,65721.0,65713.0,0.262515]
[1728984719881,0.0141,65725.0,65723.0,0.076103]
[1728984720084,0.4369,65726.0,65724.0,0.178602]
[1728984720288,0.03749505,65725.0,65724.0,0.178602]
[1728984721082,0.04249505,65725.0,65724.0,0.178602]
[1728984721580,0.0141,65732.0,65724.0,0.178602]
[1728984721779,0.0004,65735.0,65734.0,0.07609]
[1728984721979,0.0004,65735.0,65734.0,0.07649]
[1728984722282,0.0387144,65735.0,65734.0,0.43729]
[1728984722477,0.0004,65735.0,65734.0,0.43729]
[1728984722976,0.076489,65735.0,65734.0,0.3612]
[1728984723278,0.11479086,65735.0,65734.0,0.3612]
[1728984723479,0.076489,65735.0,65734.0,0.3612]
[1728984723678,0.078489,65735.0,65734.0,0.3612]
[1728984724183,0.082489,65735.0,65734.0,0.3612]
[1728984724383,0.0064,65735.0,65734.0,0.49808315]
[1728984724873,0.0064,65735.0,65734.0,0.43729]
[1728984726078,0.082489,65735.0,65734.0,0.40666043]
[1728984726279,0.082489,65735.0,65734.0,0.3612]
[1728984727370,0.082489,65735.0,65734.0,0.0004]
[1728984728685,0.0064,65735.0,65734.0,0.0004]
[1728984728885,0.0064,65735.0,65734.0,0.07649]
[1728984730579,0.0064,65735.0,65734.0,1.13289]
[1728984731269,0.0054,65735.0,65734.0,1.13889]
[1728984733176,0.0014,65735.0,65734.0,1.14289]
[1728984733479,0.0014,65735.0,65734.0,0.54289]
[1728984736389,0.0004,65736.0,65735.0,0.076089]
[1728984736580,0.0004,65736.0,65735.0,0.076489]
[1728984736979,0.0004,65736.0,65735.0,0.13697896]
[1728984737387,0.0004,65736.0,65735.0,0.13698237]
[1728984737589,0.0004,65736.0,65735.0,0.13998237]
[1728984737789,0.0149,65743.0,65741.0,0.076082]
[1728984737990,0.0008,65743.0,65741.0,0.617282]
[1728984738391,0.0008,65743.0,65742.0,0.076081]
[1728984738690,0.0008,65746.0,65745.0,0.076078]
[1728984738883,0.0008,65746.0,65745.0,0.256478]
[1728984739280,0.0008,65746.0,65745.0,0.31696157]
[1728984739587,0.0008,65746.0,65745.0,0.256478]
[1728984740490,0.00228202,65749.0,65748.0,0.076074]
[1728984740679,0.00228202,65749.0,65748.0,0.437274]
[1728984741288,0.00228202,65749.0,65748.0,0.617274]
[1728984742678,0.00328202,65749.0,65748.0,0.623274]
[1728984743088,0.00328202,65749.0,65748.0,0.447274]
[1728984744380,0.00328202,65749.0,65748.0,0.37115248]
[1728984744586,0.1150028,65749.0,65748.0,0.0104]
[1728984744890,0.1642028,65749.0,65748.0,0.0104]
[1728984746387,0.126273,65749.0,65748.0,0.0104]
[1728984746791,0.077073,65749.0,65748.0,0.3712]
[1728984747095,0.001,65749.0,65748.0,0.447274]
[1728984749500,0.001,65749.0,65748.0,0.55068866]
[1728984749996,0.001,65749.0,65748.0,0.52307885]
[1728984750201,0.001,65749.0,65748.0,0.67610963]
[1728984750699,0.001,65749.0,65748.0,0.65100478]
[1728984751097,0.001,65749.0,65748.0,0.547574]
[1728984751288,0.616858,65762.0,65756.0,0.076065]
[1728984751598,0.0984,65763.0,65759.0,0.07606]
[1728984751797,0.0984,65763.0,65760.0,0.07606]
[1728984751798,0.076058,65762.0,65760.0,0.07606]
[1728984751989,0.076058,65762.0,65761.0,0.04549036]
[1728984752191,0.0984,65763.0,65761.0,0.04549036]
[1728984752392,0.0984,65763.0,65762.0,0.0004]
[1728984753194,0.076054,65766.0,65762.0,0.12194836]
[1728984753490,0.009,65763.0,65762.0,0.12194836]
[1728984753697,0.017,65763.0,65762.0,0.438258]
[1728984754294,0.017,65763.0,65762.0,0.618258]
[1728984754492,0.08785101,65763.0,65762.0,0.618258]
[1728984754895,0.08785101,65763.0,65762.0,0.64584748]
[1728984755387,0.0417855,65763.0,65762.0,0.64484748]
[1728984755593,0.0327855,65763.0,65762.0,0.64584748]
[1728984756195,0.0337855,65763.0,65762.0,0.64584748]
[1728984756390,0.0337855,65763.0,65762.0,0.64484748]
[1728984756599,0.0141,65771.0,65762.0,1.10104748]
[1728984756800,0.4123,65779.0,65762.0,1.10104748]
[1728984756801,0.090144,65775.0,65770.0,0.5412]
[1728984756997,0.03841075,65774.0,65770.0,0.46510277]
[1728984757204,0.03841075,65773.0,65770.0,0.46510277]
[1728984757395,0.03841075,65772.0,65770.0,0.54115177]
[1728984757698,0.03841075,65771.0,65770.0,0.54115177]
[1728984758106,0.13657315,65775.0,65770.0,0.46510277]
[1728984758396,0.0141,65779.0,65774.0,0.1804]
[1728984758599,0.03749646,65778.0,65774.0,0.1804]
[1728984758897,0.076037,65781.0,65778.0,0.0004]
[1728984759097,0.03752332,65780.0,65778.0,0.0004]
[1728984759296,0.18,65782.0,65778.0,0.076439]
[1728984759297,0.03752332,65779.0,65778.0,0.076439]
[1728984759499,0.03752332,65779.0,65778.0,0.256439]
[1728984759500,0.001,65779.0,65778.0,0.256439]
[1728984760103,0.001,65781.0,65778.0,0.1884]
[1728984760299,0.001,65781.0,65780.0,0.076437]
[1728984761300,0.001,65781.0,65780.0,0.0004]
[1728984761701,0.18,65783.0,65780.0,0.076437]
[1728984761905,0.18,65783.0,65782.0,0.0004]
[1728984762595,0.256034,65783.0,65782.0,0.0004]
[1728984763196,0.256034,65783.0,65782.0,0.0034]
[1728984763396,0.256034,65783.0,65782.0,0.0044]
[1728984769001,0.25603,65786.0,65782.0,0.0044]
[1728984769202,0.25603,65786.0,65785.0,0.0004]
[1728984769509,0.076031,65785.0,65779.0,0.1026]
[1728984769701,0.0004,65781.0,65780.0,0.18]
[1728984769903,0.0004,65781.0,65780.0,0.256037]
[1728984769904,0.07087088,65781.0,65780.0,0.256037]
[1728984770208,0.1175449,65781.0,65780.0,0.256037]
[1728984771110,0.1720826,65781.0,65780.0,0.08865232]
[1728984771499,0.0549377,65781.0,65780.0,0.08865232]
[1728984771712,0.36585065,65781.0,65780.0,0.08865232]
[1728984771910,0.36685065,65781.0,65780.0,0.09365232]
[1728984772109,0.17018932,65781.0,65778.0,0.31398629]
[1728984772416,0.17018932,65781.0,65778.0,0.39002529]
[1728984772417,0.0004,65779.0,65778.0,0.39002529]
[1728984772612,0.16918932,65779.0,65778.0,0.39002529]
[1728984773509,0.16918932,65779.0,65778.0,0.57502529]
[1728984774205,0.11465162,65779.0,65778.0,0.57502529]
[1728984774408,0.17018932,65779.0,65778.0,0.58002529]
[1728984774611,0.11565162,65779.0,65778.0,0.58002529]
[1728984775207,0.11565162,65779.0,65778.0,0.57502529]
[1728984775408,0.11565162,65779.0,65778.0,0.58002529]
[1728984776411,0.0014,65779.0,65778.0,0.58002529]
[1728984776909,0.0014,65779.0,65778.0,0.987639]
[1728984781510,0.076023,65793.0,65778.0,0.987639]
[1728984781511,0.076019,65797.0,65778.0,1.0916]
[1728984781721,0.173416,65799.0,65787.0,0.076029]
[1728984781910,0.0484,65799.0,65798.0,0.076016]
[1728984782218,0.0484,65799.0,65798.0,0.256416]
[1728984783409,0.047,65802.0,65799.0,0.076015]
[1728984783603,0.047,65802.0,65801.0,0.1804]
[1728984784812,0.123012,65802.0,65801.0,0.0004]
[1728984785218,0.131012,65802.0,65801.0,0.0004]
[1728984785519,0.311012,65802.0,65801.0,0.0004]
[1728984786214,0.307012,65802.0,65801.0,0.0004]
[1728984786516,0.307012,65802.0,65798.0,0.0004]
[1728984786517,0.076015,65799.0,65798.0,0.0004]
[1728984786717,0.25602,65795.0,65794.0,0.0004]
[1728984788417,0.25602,65795.0,65794.0,0.0024]
[1728984789107,0.25602,65795.0,65794.0,0.0054]
[1728984789518,0.076029,65787.0,65786.0,0.0004]
[1728984789717,0.256029,65787.0,65786.0,0.0004]
[1728984791417,0.257029,65787.0,65786.0,0.0104]
[1728984791616,0.32364131,65787.0,65786.0,0.0104]
[1728984792219,0.32464131,65787.0,65786.0,0.0194]
[1728984792421,0.32464131,65787.0,65778.0,0.02678326]
[1728984792422,0.076038,65779.0,65778.0,0.02678326]
[1728984792622,0.0293739,65779.0,65776.0,0.3608]
[1728984792920,0.11328836,65778.0,65777.0,0.076041]
[1728984793120,0.11328836,65778.0,65777.0,0.172641]
[1728984793436,0.18103452,65778.0,65777.0,0.219941]
[1728984793927,0.24977926,65778.0,65777.0,0.219941]
[1728984794512,0.11328836,65778.0,65777.0,0.219941]
[1728984794717,0.11328836,65778.0,65777.0,0.399941]
[1728984795017,0.11328836,65778.0,65777.0,0.219941]
[1728984795211,0.16687997,65778.0,65777.0,0.399941]
[1728984795411,0.11528836,65778.0,65777.0,0.407941]
[1728984795622,0.11528488,65778.0,65777.0,0.407941]
[1728984795820,0.11528488,65778.0,65777.0,0.360841]
[1728984796413,0.25181554,65778.0,65777.0,0.360841]
[1728984796613,0.25181554,65778.0,65777.0,0.311341]
[1728984796810,0.25181554,65778.0,65777.0,0.008]
[1728984797009,0.11528522,65778.0,65777.0,0.008]
[1728984797214,0.06861231,65778.0,65777.0,0.008]
[1728984798523,0.11528616,65778.0,65777.0,0.008]
[1728984798722,0.11528616,65778.0,65777.0,0.3688]
[1728984799626,0.15166062,65779.0,65777.0,0.78350782]
[1728984799925,0.15166062,65779.0,65778.0,0.41510782]
[1728984800127,0.15166062,65779.0,65778.0,0.49114682]
[1728984801528,0.15266062,65779.0,65778.0,0.49114682]
[1728984802026,0.15366062,65779.0,65778.0,1.72722682]
[1728984802227,0.15366062,65779.0,65778.0,1.54722682]
[1728984802831,0.0954,65794.0,65786.0,0.07603]
[1728984803023,0.0954,65794.0,65786.0,0.85193782]
[1728984804226,0.076025,65791.0,65786.0,0.77590782]
[1728984804426,0.0014,65787.0,65786.0,0.59790782]
[1728984804631,0.0024,65787.0,65786.0,0.60690782]
[1728984805522,0.0024,65787.0,65786.0,0.60583612]
[1728984806023,0.1824,65787.0,65786.0,0.60583612]
[1728984806227,0.1824,65787.0,65786.0,0.24503612]
[1728984806228,0.258429,65787.0,65786.0,0.24503612]
[1728984806621,0.258429,65787.0,65786.0,0.0114]
[1728984807716,0.258429,65787.0,65786.0,0.03850468]
[1728984809329,0.258429,65787.0,65786.0,0.0114]
[1728984814031,0.078429,65787.0,65786.0,0.0114]
[1728984814435,0.258429,65787.0,65786.0,0.0114]
[1728984814629,0.258429,65787.0,65786.0,0.245802]
[1728984815421,0.258429,65787.0,65786.0,0.35198998]
[1728984815828,0.258429,65787.0,65786.0,0.245802]
[1728984816833,1.758429,65787.0,65786.0,0.245802]
[1728984819321,1.758429,65787.0,65786.0,0.11833709]
[1728984819322,1.5024,65787.0,65786.0,0.11833709]
[1728984819638,1.5024,65787.0,65786.0,0.24581665]
[1728984821524,0.3647,65795.0,65786.0,0.39372267]
[1728984821725,0.3612,65795.0,65792.0,0.10623334]
[1728984821932,0.076021,65794.0,65793.0,0.23441665]
[1728984822624,1.576021,65794.0,65793.0,0.23441665]
[1728984822825,1.756021,65794.0,65793.0,0.23441665]
[1728984823229,1.756021,65794.0,65793.0,0.23641665]
[1728984824936,1.756021,65794.0,65793.0,0.23841665]
[1728984827739,1.756021,65794.0,65793.0,0.23749463]
[1728984829241,1.756021,65794.0,65793.0,0.2367097]